bitfinex/quotes_SOLUSD_20260203
["timestamp","ask_amount","ask_price","bid_price","bid_amount"]
[1770132459725,0.1,102.55,102.52,12.17830488]
[1770132459909,0.1,102.55,102.5,0.28432314]
[1770132459910,0.1,102.55,102.51,12.17830488]
[1770132460113,2.52535274,102.51,102.44,2.50776347]
[1770132460419,12.17830488,102.49,102.44,24.44727261]
[1770132460816,12.17830488,102.49,102.44,48.85180209]
[1770132461019,12.17830488,102.5,102.45,12.17830488]
[1770132461221,14.70365762,102.51,102.46,12.17830488]
[1770132461517,14.70365762,102.51,102.47,12.17830488]
[1770132461518,12.17830488,102.51,102.47,12.17830488]
[1770132461820,12.17830488,102.5,102.46,2.50776347]
[1770132462117,12.17830488,102.51,102.46,14.68606835]
[1770132462321,12.17830488,102.51,102.47,9.75895384]
[1770132462521,12.17830488,102.51,102.47,46.33464332]
[1770132462724,12.17830488,102.52,102.47,46.33464332]
[1770132462916,12.17830488,102.51,102.47,46.33464332]
[1770132463225,12.17830488,102.52,102.47,46.33464332]
[1770132463398,12.17830488,102.51,102.47,9.75895384]
[1770132463595,12.17830488,102.5,102.45,24.40025724]
[1770132463804,12.17830488,102.47,102.42,14.68606835]
[1770132463998,12.17830488,102.47,102.44,9.76100085]
[1770132464206,12.17830488,102.47,102.43,34.1691392]
[1770132464411,12.17830488,102.47,102.43,46.34744408]
[1770132464610,12.17830488,102.48,102.43,46.34744408]
[1770132464806,12.17830488,102.48,102.42,2.50776347]
[1770132464807,2.52535274,102.47,102.4,2.50776347]
[1770132465017,8.78145037,102.49,102.42,9.76351685]
[1770132465018,12.17830488,102.44,102.42,9.76351685]
[1770132465218,14.70365762,102.45,102.42,9.76351685]
[1770132465617,12.17830488,102.46,102.42,34.1728119]
[1770132466003,2.52535274,102.47,102.42,34.1728119]
[1770132466204,12.17830488,102.46,102.42,9.76351685]
[1770132466618,12.17830488,102.45,102.41,12.27212279]
[1770132466814,12.17830488,102.45,102.41,9.76435932]
[1770132467320,12.17830488,102.45,102.41,34.17603786]
[1770132467506,11.30879257,102.47,102.41,34.17603786]
[1770132467822,12.17830488,102.42,102.38,39.27830488]
[1770132468019,12.17830488,102.42,102.38,27.1]
[1770132468212,2.52535274,102.46,102.42,0.29334087]
[1770132468419,20.96307794,102.45,102.42,0.58667469]
[1770132468610,12.17830488,102.44,102.42,0.58667469]
[1770132468810,12.17830488,102.44,102.38,2.50776347]
[1770132468811,2.52535274,102.44,102.38,12.27455624]
[1770132469005,12.17830488,102.42,102.39,9.76646108]
[1770132469204,12.17830488,102.43,102.38,39.10252524]
[1770132469408,12.17830488,102.43,102.39,9.76611539]
[1770132469618,14.70365762,102.44,102.4,9.76553845]
[1770132469825,12.17830488,102.43,102.4,9.76553845]
[1770132470006,12.17830488,102.43,102.39,9.76616808]
[1770132470202,2.52535274,102.41,102.35,33.88303432]
[1770132470403,12.17830488,102.4,102.36,9.76944118]
[1770132470624,3.16353369,102.4,102.36,9.76944118]
[1770132470829,15.34183857,102.4,102.36,9.76944118]
[1770132471130,15.34183857,102.4,102.36,34.19304414]
[1770132471435,3.16353369,102.39,102.34,9.77113665]
[1770132471615,12.17830488,102.36,102.33,9.97182409]
[1770132471813,12.17830488,102.35,102.33,0.2]
[1770132472022,3.16353369,102.37,102.33,9.97218103]
[1770132472234,12.17830488,102.35,102.33,0.2]
[1770132472414,20.97259269,102.34,102.29,3.13447006]
[1770132472617,12.17830488,102.3,102.27,9.77752376]
[1770132472823,3.16353369,102.32,102.27,0.2]
[1770132473331,12.17830488,102.31,102.27,0.2]
[1770132473533,12.17830488,102.31,102.27,9.97746797]
[1770132474041,34.14971474,102.34,102.19,9.78569331]
[1770132474042,12.17830488,102.28,102.19,9.78569331]
[1770132474237,171.48727197,102.34,102.19,9.78569331]
[1770132474238,215.45834877,102.34,102.21,3.22860306]
[1770132474536,215.45834877,102.34,102.24,15.40690794]
[1770132474537,12.17830488,102.29,102.24,15.40690794]
[1770132474912,12.17830488,102.28,102.24,15.40690794]
[1770132475121,2.8435868,102.32,102.24,3.22860306]
[1770132475321,12.17830488,102.26,102.22,13.01101733]
[1770132475527,2.88528532,102.29,102.22,13.01101733]
[1770132475733,12.17830488,102.25,102.22,3.22860306]
[1770132475931,12.17830488,102.25,102.21,9.782985]
[1770132476134,27.12,102.33,102.2,39.29830488]
[1770132476135,12.17830488,102.24,102.2,36.90451323]
[1770132476433,12.17830488,102.23,102.2,9.78451323]
[1770132476632,12.17830488,102.24,102.2,49.6532607]
[1770132476835,12.17830488,102.25,102.2,49.6532607]
[1770132477128,11.72675303,102.27,102.2,49.6532607]
[1770132477431,12.17830488,102.26,102.22,3.22860306]
[1770132477933,12.17830488,102.26,102.22,15.40690794]
[1770132478113,33.76205012,102.29,102.22,15.40690794]
[1770132478313,8.80208769,102.25,102.19,13.01429637]
[1770132478525,12.17830488,102.24,102.19,25.19260125]
[1770132478726,12.17830488,102.24,102.2,12.17830488]
[1770132479019,8.80208769,102.25,102.19,37.47852966]
[1770132479020,12.17830488,102.25,102.21,15.40690794]
[1770132479228,12.17830488,102.25,102.21,3.22860306]
[1770132479530,12.17830488,102.25,102.19,37.47852966]
[1770132479835,12.17830488,102.23,102.19,49.65683454]
[1770132480022,12.17830488,102.25,102.21,12.17830488]
[1770132480332,3.11729617,102.3,102.23,9.78186442]
[1770132480531,12.17830488,102.3,102.26,12.17830488]
[1770132480735,12.17830488,102.29,102.23,37.46512853]
[1770132481037,8.7961634,102.32,102.27,12.17830488]
[1770132481238,8.7961634,102.32,102.26,3.22860306]
[1770132481239,12.17830488,102.3,102.26,3.22860306]
[1770132481443,3.16631161,102.3,102.23,25.18877236]
[1770132481736,12.17830488,102.29,102.24,15.40690794]
[1770132482131,12.17830488,102.28,102.24,12.17830488]
[1770132482325,8.79811126,102.3,102.25,25.18633504]
[1770132482526,12.00994912,102.33,102.27,12.17830488]
[1770132482733,12.17830488,102.29,102.25,21.95773198]
[1770132482938,12.17830488,102.32,102.27,12.17830488]
[1770132483136,12.17830488,102.29,102.24,15.40690794]
[1770132483432,12.17830488,102.29,102.24,25.18763468]
[1770132483824,3.26266,102.3,102.23,24.45368661]
[1770132484024,12.17830488,102.27,102.22,15.40690794]
[1770132484328,12.17830488,102.3,102.25,25.18620014]
[1770132484530,3.3100058,102.32,102.25,37.45777301]
[1770132484734,3.3100058,102.32,102.27,12.28674131]
[1770132484926,3.3100058,102.32,102.26,3.22860306]
[1770132485247,12.28674131,102.29,102.25,22.06603351]
[1770132485432,12.28674131,102.28,102.24,9.78057371]
[1770132485630,12.28674131,102.27,102.24,9.78057371]
[1770132485941,12.28674131,102.26,102.23,9.78154359]
[1770132486138,3.35680779,102.32,102.24,13.00909644]
[1770132486332,12.28674131,102.29,102.25,9.7799508]
[1770132486640,12.28674131,102.3,102.25,15.51534437]
[1770132486834,12.28674131,102.28,102.24,22.06725964]
[1770132487028,12.28674131,102.28,102.24,9.78051833]
[1770132487226,3.36988853,102.3,102.24,25.2958627]
[1770132487443,12.28674131,102.28,102.24,13.00912139]
[1770132487743,3.36988853,102.3,102.24,25.2958627]
[1770132487935,31.27211134,102.33,102.26,3.22860306]
[1770132487936,3.36988853,102.32,102.26,3.22860306]
[1770132488138,12.28674131,102.34,102.29,15.51534437]
[1770132488336,12.28674131,102.36,102.31,12.28674131]
[1770132488560,3.36988853,102.36,102.28,9.77694025]
[1770132488853,12.28674131,102.29,102.24,12.28674131]
[1770132489024,15.65662984,102.26,102.19,115.22636625]
[1770132489226,15.65662984,102.26,102.23,34.23631525]
[1770132489462,218.6223842,102.37,102.26,3.22860306]
[1770132489754,12.28674131,102.34,102.29,15.51534437]
[1770132490249,12.28674131,102.36,102.31,12.28674131]
[1770132490429,12.28674131,102.37,102.32,22.06000166]
[1770132490629,12.28674131,102.37,102.33,3.22860306]
[1770132490843,12.28674131,102.36,102.32,46.49315255]
[1770132491057,12.28674131,102.35,102.31,25.28929208]
[1770132491234,27.34669532,102.39,102.31,25.28929208]
[1770132491235,12.28674131,102.36,102.31,25.28929208]
[1770132491430,12.28674131,102.38,102.33,15.51534437]
[1770132491724,27.34669532,102.39,102.35,12.28674131]
[1770132491725,12.28674131,102.39,102.35,12.28674131]
[1770132491925,11.18267426,102.4,102.34,15.51534437]
[1770132492143,30.71392426,102.4,102.33,15.51534437]
[1770132492346,12.28674131,102.35,102.31,3.22860306]
[1770132492557,20.10361714,102.35,102.31,3.22860306]
[1770132492728,7.81687583,102.35,102.31,3.22860306]
[1770132492930,11.18498619,102.37,102.3,3.22860306]
[1770132493230,12.28674131,102.38,102.33,15.51534437]
[1770132493440,93.7225422,102.43,102.32,15.51534437]
[1770132493441,3.36988853,102.41,102.32,15.51534437]
[1770132493637,12.28674131,102.4,102.35,12.28674131]
[1770132493837,12.28674131,102.39,102.35,12.28674131]
[1770132494131,12.28674131,102.38,102.34,3.22860306]
[1770132494659,12.28674131,102.38,102.34,12.99929641]
[1770132494829,12.28674131,102.39,102.34,49.71441372]
[1770132495466,11.18241406,102.4,102.35,12.28674131]
[1770132495467,15.65662984,102.4,102.35,12.28674131]
[1770132495630,20.09833809,102.42,102.37,15.51534437]
[1770132495945,12.28674131,102.39,102.35,30.36860306]
[1770132496152,12.28674131,102.37,102.33,13.0005302]
[1770132496459,12.28674131,102.41,102.37,12.99708992]
[1770132496634,7.81088266,102.43,102.37,12.99708992]
[1770132496635,12.28674131,102.42,102.38,12.28674131]
[1770132496834,7.81088266,102.43,102.37,49.70504838]
[1770132497036,12.28674131,102.41,102.37,49.70504838]
[1770132497233,12.28674131,102.42,102.38,12.28674131]
[1770132497434,12.28674131,102.45,102.4,12.28674131]
[1770132497647,12.28674131,102.44,102.39,15.51534437]
[1770132498159,12.28674131,102.41,102.37,9.76848686]
[1770132498326,12.28674131,102.4,102.36,12.99786449]
[1770132498531,3.36988853,102.45,102.37,3.22860306]
[1770132498829,12.28674131,102.41,102.37,3.22860306]
[1770132499039,12.28674131,102.4,102.37,3.22860306]
[1770132499240,3.36988853,102.43,102.37,3.22860306]
[1770132499241,12.28674131,102.42,102.37,15.51534437]
[1770132499547,30.7002936,102.45,102.41,15.51534437]
[1770132499548,12.28674131,102.45,102.41,15.51534437]
[1770132499950,12.28674131,102.46,102.42,12.28674131]
[1770132500143,12.28674131,102.46,102.41,15.51534437]
[1770132500344,7.80728146,102.47,102.37,4.27527085]
[1770132500345,11.17632427,102.48,102.42,16.03979217]
[1770132500535,12.28674131,102.48,102.44,9.76181179]
[1770132500740,12.28674131,102.47,102.44,9.76181179]
[1770132501048,0.1,102.49,102.44,16.03979217]
[1770132501249,0.1,102.49,102.43,34.16920165]
[1770132501250,0.1,102.49,102.45,16.03979217]
[1770132501548,23.89285012,102.53,102.48,12.28674131]
[1770132501755,7.80183343,102.54,102.48,16.03979217]
[1770132501948,12.28674131,102.51,102.48,3.75305086]
[1770132502142,27.306417,102.54,102.46,3.75305086]
[1770132502143,1.05240552,102.52,102.46,3.75305086]
[1770132502347,12.28674131,102.5,102.46,3.75305086]
[1770132502532,12.28674131,102.5,102.46,13.512366]
[1770132502745,8.85608543,102.52,102.46,13.512366]
[1770132502940,12.28674131,102.54,102.49,16.03979217]
[1770132503144,12.38674131,102.55,102.5,16.03979217]
[1770132503340,0.1,102.55,102.51,12.28674131]
[1770132503552,12.28674131,102.54,102.5,3.75305086]
[1770132503768,12.28674131,102.54,102.49,12.28674131]
[1770132503769,11.70445574,102.55,102.49,3.75305086]
[1770132503964,12.28674131,102.51,102.48,27.14]
[1770132504670,12.28674131,102.5,102.46,3.75305086]
[1770132504871,12.28674131,102.52,102.49,3.75305086]
[1770132505073,12.28674131,102.54,102.49,16.03979217]
[1770132505262,12.38674131,102.55,102.51,12.28674131]
[1770132505579,12.28674131,102.53,102.48,77.31272653]
[1770132505782,12.28674131,102.54,102.49,12.28674131]
[1770132506075,12.28674131,102.52,102.48,13.51098132]
[1770132506258,12.28674131,102.49,102.46,3.75305086]
[1770132506573,6.82926829,102.5,102.45,9.76034845]
[1770132506748,12.28674131,102.47,102.44,13.51440845]
[1770132507248,12.28674131,102.48,102.44,13.51440845]
[1770132507448,12.28674131,102.48,102.44,37.91893793]
[1770132507863,12.28674131,102.47,102.44,13.51440845]
[1770132508175,12.28674131,102.45,102.42,9.76314921]
[1770132508473,12.28674131,102.46,102.42,3.75305086]
[1770132508687,10.63321221,102.49,102.42,9.763174]
[1770132508854,12.28674131,102.46,102.43,9.76259982]
[1770132509049,12.28674131,102.47,102.43,9.76259982]
[1770132509267,12.28674131,102.48,102.43,25.80239199]
[1770132509577,12.28674131,102.47,102.43,25.80239199]
[1770132509781,12.28674131,102.5,102.46,3.75305086]
[1770132509960,12.28674131,102.5,102.46,16.03979217]
[1770132510159,12.28674131,102.5,102.46,3.75305086]
[1770132510357,12.28674131,102.49,102.46,3.75305086]
[1770132510675,12.28674131,102.52,102.48,25.79731192]
[1770132510851,12.28674131,102.51,102.48,3.75305086]
[1770132511053,12.28674131,102.49,102.46,3.75305086]
[1770132511452,12.28674131,102.5,102.46,13.51268745]
[1770132511664,12.28674131,102.49,102.46,13.51268745]
[1770132511871,12.28674131,102.47,102.42,3.75305086]
[1770132512077,12.28674131,102.43,102.4,9.76522429]
[1770132512370,12.28674131,102.42,102.4,9.76533663]
[1770132512587,6.83261276,102.45,102.39,28.16862292]
[1770132512882,12.28674131,102.45,102.42,0.29317121]
[1770132513058,6.83225481,102.46,102.42,0.29317121]
[1770132513252,12.28674131,102.44,102.42,0.29317121]
[1770132513851,12.28674131,102.43,102.42,0.29317121]
[1770132514055,23.91209084,102.46,102.42,0.29317121]
[1770132514056,27.71536843,102.46,102.42,0.29317121]
[1770132514255,12.28674131,102.44,102.42,0.29317121]
[1770132514457,3.80327759,102.48,102.42,4.04622207]
[1770132514672,12.28674131,102.46,102.42,16.33296338]
[1770132514880,23.9094369,102.47,102.42,4.04622207]
[1770132515055,12.28674131,102.45,102.42,10.05659117]
[1770132515760,12.28674131,102.46,102.42,10.05659117]
[1770132515957,12.28674131,102.46,102.42,50.50567839]
[1770132516158,12.28674131,102.45,102.42,13.80964203]
[1770132516454,3.80327759,102.52,102.45,3.75305086]
[1770132516674,12.28674131,102.51,102.47,12.28674131]
[1770132516869,11.60703822,102.52,102.45,28.15487758]
[1770132517069,12.28674131,102.5,102.45,16.03979217]
[1770132517260,12.28674131,102.5,102.45,25.79995573]
[1770132517457,31.11542682,102.52,102.46,22.04643055]
[1770132517760,12.28674131,102.5,102.46,22.0461472]
[1770132517964,12.28674131,102.5,102.46,9.75940589]
[1770132518166,12.28674131,102.5,102.46,22.0461472]
[1770132518475,12.28674131,102.5,102.46,22.04613098]
[1770132518688,12.28674131,102.47,102.44,9.76136949]
[1770132518870,12.28674131,102.48,102.44,9.76136949]
[1770132519068,12.28674131,102.47,102.43,25.80206209]
[1770132519584,12.28674131,102.45,102.42,9.76327999]
[1770132519968,12.28674131,102.43,102.39,16.03979217]
[1770132520161,12.28674131,102.42,102.38,9.76708684]
[1770132520477,12.28674131,102.4,102.36,13.52182856]
[1770132520689,12.28674131,102.39,102.35,13.52344656]
[1770132520877,12.28674131,102.39,102.35,3.75305086]
[1770132521071,12.28674131,102.39,102.33,3.75305086]
[1770132521072,12.28674131,102.36,102.33,3.75305086]
[1770132521275,31.14986589,102.39,102.29,16.03979217]
[1770132521276,12.28674131,102.34,102.29,16.03979217]
[1770132521489,12.28674131,102.34,102.31,9.77375784]
[1770132522281,12.28674131,102.35,102.31,9.7737776]
[1770132522600,12.28674131,102.32,102.27,9.7775041]
[1770132522880,12.28674131,102.3,102.26,22.06531353]
[1770132523071,11.62141762,102.33,102.27,16.03979217]
[1770132523280,20.10488134,102.33,102.28,16.03979217]
[1770132523694,7.8173294,102.34,102.28,16.03979217]
[1770132523874,12.28674131,102.33,102.28,3.75305086]
[1770132524182,12.28674131,102.29,102.25,9.77950409]
[1770132524361,12.28674131,102.27,102.23,12.28674131]
[1770132524558,12.28674131,102.25,102.22,13.53547836]
[1770132524758,12.28674131,102.26,102.22,13.53547836]
[1770132525169,12.28674131,102.25,102.19,51.58355448]
[1770132525371,7.82270644,102.27,102.22,9.78274301]
[1770132525581,12.28674131,102.26,102.22,22.06948432]
[1770132525890,12.28674131,102.26,102.21,3.75305086]
[1770132525891,12.28674131,102.25,102.21,13.53646131]
[1770132526072,30.92327759,102.31,102.23,16.03979217]
[1770132526385,116.77165019,103.52,102.28,12.28674131]
[1770132526386,6.84128225,102.32,102.28,12.28674131]
[1770132526583,6.84079449,102.33,102.29,12.28674131]
[1770132527180,12.28674131,102.3,102.24,16.03979217]
[1770132527369,12.28674131,102.27,102.24,3.75305086]
[1770132527570,12.28674131,102.29,102.24,25.82047187]
[1770132527775,3.80327759,102.28,102.21,3.75305086]
[1770132528095,3.80327759,102.28,102.17,78.29969282]
[1770132528096,12.28674131,102.28,102.23,16.03979217]
[1770132528384,3.80327759,102.3,102.24,16.03979217]
[1770132528576,12.28674131,102.29,102.24,16.03979217]
[1770132528775,12.28674131,102.27,102.24,13.53393423]
[1770132528964,19.13002999,102.29,102.24,25.82067554]
[1770132529163,12.28674131,102.28,102.24,25.82067554]
[1770132529401,12.28674131,102.27,102.24,3.75305086]
[1770132529577,12.28674131,102.26,102.22,25.82225464]
[1770132530083,12.28674131,102.25,102.22,3.75305086]
[1770132530287,12.28674131,102.27,102.24,9.7808339]
[1770132530478,19.13002999,102.29,102.25,4.218274]
[1770132530872,19.13002999,102.29,102.25,16.50501531]
[1770132531071,19.12735501,102.33,102.28,12.28674131]
[1770132531305,19.12735501,102.33,102.25,9.77989044]
[1770132531306,16.31807259,102.39,102.33,4.218274]
[1770132531590,12.28674131,102.37,102.33,4.218274]
[1770132531793,6.8359375,102.4,102.35,12.28674131]
[1770132531982,12.28674131,102.39,102.35,12.28674131]
[1770132532172,12.28674131,102.38,102.34,4.218274]
[1770132532363,12.28674131,102.39,102.34,4.218274]
[1770132532564,12.28674131,102.39,102.3,5.36086188]
[1770132532565,6.83553725,102.41,102.37,12.28674131]
[1770132532982,23.92371223,102.41,102.36,16.50501531]
[1770132533185,12.28674131,102.4,102.36,16.50501531]
[1770132533499,23.15276897,102.42,102.37,12.28674131]
[1770132533670,6.83469638,102.42,102.38,12.28674131]
[1770132534076,6.83469638,102.42,102.39,12.28674131]
[1770132534390,19.12143769,102.42,102.38,12.28674131]
[1770132534582,19.12093209,102.43,102.38,12.28674131]
[1770132534793,12.28674131,102.42,102.37,26.38426551]
[1770132534973,6.83491404,102.42,102.38,12.28674131]
[1770132535297,12.28674131,102.43,102.37,14.0975242]
[1770132535298,19.1209455,102.43,102.37,14.0975242]
[1770132535471,6.83420419,102.43,102.37,14.0975242]
[1770132535796,19.1209455,102.43,102.37,38.51874135]
[1770132536293,12.28674131,102.42,102.37,38.51874135]
[1770132536505,5.85734413,102.44,102.39,4.32920585]
[1770132536685,18.14408544,102.44,102.39,16.61594716]
[1770132536992,12.28674131,102.42,102.35,27.14]
[1770132537188,16.65532114,102.43,102.39,12.28674131]
[1770132537388,18.14408544,102.44,102.4,12.28674131]
[1770132538177,12.28674131,102.43,102.39,12.28674131]
[1770132538688,32.78680312,102.44,102.4,12.28674131]
[1770132538893,32.78680312,102.44,102.39,22.05287583]
[1770132539187,5.85681023,102.45,102.42,12.28674131]
[1770132539386,26.92456778,102.48,102.43,12.28674131]
[1770132539587,27.14,102.5,102.45,12.28674131]
[1770132539588,18.14075734,102.5,102.45,12.28674131]
[1770132539795,12.28674131,102.48,102.43,16.61594716]
[1770132539981,12.28674131,102.49,102.44,12.28674131]
[1770132540181,12.28674131,102.47,102.41,31.46920585]
[1770132540487,4.36857983,102.53,102.46,16.61594716]
[1770132540686,4.36857983,102.53,102.48,12.28674131]
[1770132540687,37.13738484,102.53,102.48,12.28674131]
[1770132540988,37.13738484,102.53,102.43,27.14]
[1770132540989,22.50983561,102.49,102.44,12.28674131]
[1770132541196,12.28674131,102.46,102.41,4.32920585]
[1770132541372,12.28674131,102.42,102.37,4.32920585]
[1770132541577,4.36857983,102.44,102.37,26.3844074]
[1770132541578,12.28674131,102.41,102.37,26.3844074]
[1770132541798,12.28674131,102.41,102.37,14.09766609]
[1770132542092,20.49008867,102.49,102.41,4.32920585]
[1770132542398,12.28674131,102.47,102.37,151.41151971]
[1770132542576,12.28674131,102.47,102.42,12.28674131]
[1770132542775,20.49008867,102.49,102.39,12.28674131]
[1770132542776,12.28674131,102.44,102.39,12.28674131]
[1770132543080,18.14589082,102.41,102.37,12.28674131]
[1770132543282,12.28674131,102.4,102.32,4.32920585]
[1770132543592,12.28674131,102.4,102.31,27.14]
[1770132543593,12.28674131,102.34,102.3,9.77452111]
[1770132543798,20.50615663,102.41,102.31,9.77414865]
[1770132544022,23.42377513,102.46,102.36,12.28674131]
[1770132544310,23.42377513,102.46,102.31,266.60821566]
[1770132544311,12.28674131,102.39,102.34,4.32920585]
[1770132544492,12.2726731,102.35,102.3,12.2726731]
[1770132544693,4.36857983,102.39,102.31,9.77331553]
[1770132544993,4.36857983,102.39,102.31,34.20885457]
[1770132544994,5.86051963,102.38,102.31,34.20885457]
[1770132545197,12.2726731,102.36,102.31,12.2726731]
[1770132545404,22.50146207,102.39,102.34,12.2726731]
[1770132545695,4.36857983,102.39,102.35,12.2726731]
[1770132545896,9.2519072,102.39,102.32,12.2726731]
[1770132546194,12.2726731,102.38,102.33,12.2726731]
[1770132546497,21.46013065,102.39,102.33,12.2726731]
[1770132546799,12.2726731,102.34,102.3,14.10395028]
[1770132546988,12.2726731,102.35,102.3,26.37662338]
[1770132547299,17.15804755,102.35,102.3,26.37662338]
[1770132547500,12.2726731,102.33,102.28,16.60187895]
[1770132547675,12.2726731,102.31,102.26,16.60187895]
[1770132547882,12.2726731,102.3,102.27,9.77769081]
[1770132548200,12.2726731,102.33,102.28,16.60187895]
[1770132548493,21.4669489,102.35,102.26,26.379944]
[1770132548494,12.2726731,102.31,102.26,26.379944]
[1770132548693,12.2726731,102.29,102.24,26.38223607]
[1770132548898,4.36857983,102.3,102.25,12.2726731]
[1770132549100,12.2726731,102.29,102.25,9.77993482]
[1770132549301,12.2726731,102.29,102.24,26.38248544]
[1770132549479,4.88806334,102.29,102.24,14.10981234]
[1770132549677,12.2726731,102.28,102.24,26.38248544]
[1770132549902,12.2726731,102.26,102.21,12.2726731]
[1770132550100,4.88806334,102.29,102.24,22.05293506]
[1770132550279,4.88806334,102.29,102.25,12.2726731]
[1770132550474,12.2726731,102.28,102.24,12.2726731]
[1770132550674,12.2726731,102.28,102.23,26.38373081]
[1770132550995,28.85855137,102.32,102.27,12.2726731]
[1770132551295,12.2726731,102.3,102.26,4.32920585]
[1770132551595,12.2726731,102.31,102.27,12.2726731]
[1770132551795,33.74518154,102.32,102.27,12.2726731]
[1770132551976,12.2726731,102.31,102.27,12.2726731]
[1770132553091,16.64125293,102.31,102.26,12.2726731]
[1770132553410,12.2726731,102.29,102.25,12.2726731]
[1770132553585,4.88758553,102.3,102.26,26.38081315]
[1770132553789,4.88713212,102.31,102.27,12.2726731]
[1770132554298,21.52838505,102.31,102.27,12.2726731]
[1770132554498,17.15980522,102.31,102.27,12.2726731]
[1770132554698,12.2726731,102.3,102.25,16.60187895]
[1770132555002,12.2726731,102.29,102.24,16.60187895]
[1770132555203,12.2726731,102.29,102.24,26.38254232]
[1770132555204,17.16094451,102.29,102.24,26.38254232]
[1770132555505,12.2726731,102.28,102.24,4.32920585]
[1770132555687,12.2726731,102.28,102.24,16.60187895]
[1770132556288,12.2726731,102.28,102.24,12.2726731]
[1770132556793,12.2726731,102.28,102.23,12.2726731]
[1770132556998,12.2726731,102.24,102.2,9.78415211]
[1770132557308,21.53141648,102.25,102.2,16.60187895]
[1770132557601,12.2726731,102.26,102.22,12.2726731]
[1770132557992,12.2726731,102.26,102.21,16.60187895]
[1770132558195,4.36857983,102.27,102.23,12.2726731]
[1770132558392,17.16121435,102.28,102.24,12.2726731]
[1770132558906,4.36857983,102.27,102.2,4.32920585]
[1770132559099,12.2726731,102.25,102.21,12.2726731]
[1770132559300,12.2726731,102.23,102.18,26.58808048]
[1770132559608,12.2726731,102.22,102.18,14.3151154]
[1770132559900,21.48516824,102.24,102.18,14.3151154]
[1770132559901,17.16312693,102.24,102.2,12.2726731]
[1770132560201,12.2726731,102.21,102.18,0.2]
[1770132560403,12.2726731,102.23,102.19,12.2726731]
[1770132561004,12.2726731,102.23,102.18,26.39594562]
[1770132561209,17.16456234,102.21,102.18,0.2]
[1770132561413,12.2726731,102.2,102.15,4.13703878]
[1770132561709,12.2726731,102.2,102.16,26.19786973]
[1770132561903,9.37080734,102.21,102.16,16.40971188]
[1770132562110,21.64348044,102.21,102.16,16.40971188]
[1770132562488,12.2726731,102.2,102.16,13.9251967]
[1770132562805,17.16425002,102.22,102.18,12.2726731]
[1770132562999,4.89157692,102.22,102.18,12.2726731]
[1770132563203,16.7515912,102.23,102.19,12.2726731]
[1770132563204,9.37005037,102.23,102.19,12.2726731]
[1770132563404,44.32331663,102.24,102.19,22.05832055]
[1770132563592,12.2726731,102.23,102.2,4.13703878]
[1770132563908,16.7515912,102.21,102.16,9.78803426]
[1770132564108,12.2726731,102.18,102.15,4.13703878]
[1770132564283,12.2726731,102.21,102.16,16.40971188]
[1770132564488,12.2726731,102.22,102.18,16.40971188]
[1770132564688,27.16,102.23,102.19,12.2726731]
[1770132564892,12.2726731,102.2,102.16,16.40971188]
[1770132565106,12.2726731,102.21,102.17,12.2726731]
[1770132565408,21.64340154,102.22,102.17,26.19732076]
[1770132565703,12.2726731,102.2,102.17,4.13703878]
[1770132565906,12.2726731,102.19,102.15,26.19861391]
[1770132566105,16.18580164,102.22,102.17,16.40971188]
[1770132566309,12.2726731,102.24,102.19,16.40971188]
[1770132566519,16.7515912,102.25,102.21,12.2726731]
[1770132566701,25.96326569,102.26,102.22,12.2726731]
[1770132566890,30.44218379,102.26,102.21,12.2726731]
[1770132567206,12.2726731,102.24,102.2,16.40971188]
[1770132568413,11.80080067,102.24,102.2,12.02509784]
[1770132568617,9.78023788,102.25,102.21,12.02509784]
[1770132568618,3.91223663,102.25,102.21,12.02509784]
[1770132568791,3.91223663,102.25,102.22,7.88805906]
[1770132568988,3.91223663,102.25,102.21,12.02509784]
[1770132569207,3.91223663,102.25,102.2,17.67244262]
[1770132569208,11.80029569,102.25,102.2,17.67244262]
[1770132569389,11.80029569,102.25,102.2,12.02509784]
[1770132569390,7.88805906,102.24,102.2,12.02509784]
[1770132569907,3.91172837,102.26,102.22,4.13703878]
[1770132570109,3.91172837,102.26,102.22,12.02509784]
[1770132570286,11.79978743,102.26,102.21,7.88805906]
[1770132570492,7.88805906,102.25,102.21,7.88805906]
[1770132570796,4.4789181,102.23,102.18,9.78633632]
[1770132570991,95.83427871,102.26,102.2,7.88805906]
[1770132570992,7.88805906,102.24,102.2,7.88805906]
[1770132571194,12.36697716,102.25,102.21,7.88805906]
[1770132571411,12.36697716,102.25,102.2,17.6727322]
[1770132571603,7.88805906,102.25,102.2,21.80977098]
[1770132572003,7.88805906,102.24,102.2,13.92148175]
[1770132572201,7.88805906,102.25,102.2,21.80954081]
[1770132572400,11.80042212,102.24,102.19,17.67375237]
[1770132572730,3.91159788,102.26,102.22,12.02509784]
[1770132572911,21.57865165,102.26,102.22,4.13703878]
[1770132573099,13.69059259,102.26,102.2,4.13703878]
[1770132573293,7.88805906,102.24,102.18,21.81147663]
[1770132573606,7.88805906,102.24,102.19,12.02509784]
[1770132574324,4.4789181,102.25,102.2,4.13703878]
[1770132574499,11.80042212,102.24,102.2,13.9215723]
[1770132574832,9.77737556,102.28,102.22,4.13703878]
[1770132575005,3.91153699,102.27,102.23,12.02509784]